bitfinex/quotes_SOLUSD_20250710
["timestamp","ask_amount","ask_price","bid_price","bid_amount"]
[1752171133513,4.36572283,160.34,160.23,0.66]
[1752171133777,0.71,160.34,160.25,12.23016157]
[1752171134011,3.14560136,160.37,160.27,0.14216157]
[1752171134012,0.71,160.36,160.27,0.14216157]
[1752171134207,0.71,160.36,160.29,16.78468397]
[1752171134421,26.0,160.34,160.26,16.78468397]
[1752171134611,0.71,160.33,160.3,34.08]
[1752171134819,0.71,160.32,160.3,34.08]
[1752171135017,0.71,160.35,160.3,34.08]
[1752171135199,0.71,160.37,160.31,16.78468397]
[1752171135403,0.71,160.37,160.31,17.44468397]
[1752171135623,26.0,160.35,160.31,17.44468397]
[1752171135924,0.71,160.37,160.33,16.78468397]
[1752171136124,0.71,160.39,160.33,16.78468397]
[1752171136313,4.36354569,160.42,160.34,0.66]
[1752171136314,0.71,160.42,160.34,0.66]
[1752171136514,0.71,160.42,160.35,50.88468397]
[1752171136515,11.69875867,160.42,160.35,50.88468397]
[1752171136809,0.71,160.42,160.36,0.66]
[1752171137239,26.71,160.42,160.36,0.66]
[1752171137533,0.99432314,160.41,160.35,34.1]
[1752171137731,0.71,160.41,160.35,34.1]
[1752171138234,26.0,160.4,160.35,34.1]
[1752171138427,26.0,160.4,160.36,0.66]
[1752171139125,11.66448602,160.43,160.36,0.66]
[1752171139341,11.66448602,160.43,160.35,34.1]
[1752171139342,26.0,160.42,160.35,34.1]
[1752171139513,26.0,160.4,160.35,34.1]
[1752171139708,0.99432314,160.39,160.35,34.1]
[1752171139905,26.71,160.38,160.35,34.1]
[1752171140420,0.99432314,160.37,160.36,34.08]
[1752171140618,0.99432314,160.37,160.34,26.92]
[1752171140807,0.71,160.36,160.28,26.92]
[1752171141527,0.71,160.36,160.28,262.22]
[1752171142039,0.71,160.36,160.28,262.88]
[1752171142334,0.71,160.36,160.29,34.72]
[1752171143036,26.0,160.33,160.29,34.72]
[1752171143212,26.0,160.33,160.29,123.72]
[1752171143419,26.71,160.33,160.29,89.0]
[1752171143618,26.0,160.33,160.3,34.7]
[1752171143939,26.0,160.33,160.3,34.04]
[1752171144119,26.0,160.33,160.29,89.0]
[1752171144120,0.99432314,160.33,160.31,34.04]
[1752171144619,16.78468397,160.4,160.31,34.04]
[1752171144620,0.71,160.36,160.31,34.7]
[1752171144833,0.71,160.35,160.31,34.04]
[1752171145135,0.99432314,160.34,160.31,34.04]
[1752171145317,0.99432314,160.34,160.29,89.0]
[1752171145515,0.28432314,160.34,160.3,34.68]
[1752171145714,26.0,160.36,160.3,34.68]
[1752171145933,26.0,160.36,160.31,17.44468397]
[1752171146248,0.71,160.4,160.32,0.66]
[1752171146442,0.71,160.4,160.33,16.78468397]
[1752171146637,0.71,160.42,160.35,16.78468397]
[1752171146957,26.0,160.39,160.35,16.78468397]
[1752171147117,26.0,160.39,160.36,0.66]
[1752171147324,5.07356428,160.42,160.36,0.66]
[1752171147629,26.0,160.4,160.36,0.66]
[1752171148016,0.67,160.39,160.34,34.06]
[1752171148219,26.0,160.38,160.34,34.75]
[1752171149144,26.0,160.39,160.35,17.47468397]
[1752171149348,26.0,160.39,160.36,0.69]
[1752171149515,26.0,160.39,160.34,34.06]
[1752171149720,26.0,160.39,160.34,34.75]
[1752171149956,0.95432314,160.39,160.34,34.75]
[1752171150431,0.28432314,160.39,160.35,0.69]
[1752171150751,0.95432314,160.39,160.34,34.06]
[1752171151245,0.95432314,160.39,160.34,34.75]
[1752171151644,5.31868623,160.39,160.33,16.78468397]
[1752171151817,5.31868623,160.39,160.34,34.0]
[1752171152425,0.95432314,160.39,160.34,34.0]
[1752171152634,26.0,160.39,160.35,0.69]
[1752171152839,0.28432314,160.41,160.35,0.69]
[1752171153030,0.28432314,160.41,160.36,0.69]
[1752171153249,26.0,160.39,160.36,0.69]
[1752171154839,26.0,160.38,160.35,16.78468397]
[1752171155021,26.0,160.38,160.35,17.47468397]
[1752171155220,26.0,160.38,160.34,34.62367469]
[1752171155420,26.0,160.38,160.34,34.69]
[1752171155646,26.0,160.38,160.35,0.69]
[1752171155824,0.28432314,160.4,160.36,0.69]
[1752171155825,26.0,160.39,160.36,0.69]
[1752171156223,26.0,160.39,160.36,235.99]
[1752171156636,26.0,160.4,160.37,0.69]
[1752171156851,26.0,160.4,160.38,33.96]
[1752171157141,26.0,160.41,160.38,269.26]
[1752171157443,26.67,160.4,160.38,269.26]
[1752171158122,26.67,160.4,160.39,34.0]
[1752171158322,26.67,160.4,160.38,235.3]
[1752171159522,26.95432314,160.4,160.39,33.98]
[1752171159724,26.95432314,160.4,160.38,235.3]
[1752171159957,26.28432314,160.4,160.38,235.3]
[1752171160156,0.28432314,160.4,160.38,235.3]
[1752171160463,5.31852246,160.4,160.38,235.3]
[1752171160955,5.31852246,160.4,160.39,33.96]
[1752171161142,26.0,160.39,160.38,235.3]
[1752171161349,0.28432314,160.37,160.35,89.0]
[1752171161546,26.95432314,160.36,160.35,89.0]
[1752171162451,26.95432314,160.36,160.35,122.94]
[1752171162763,26.95432314,160.36,160.35,89.0]
[1752171163062,26.95432314,160.36,160.35,122.94]
[1752171163355,31.31950148,160.36,160.35,122.94]
[1752171163537,31.31950148,160.36,160.35,89.0]
[1752171163737,31.31950148,160.36,160.35,122.92]
[1752171164338,0.28432314,160.36,160.35,122.92]
[1752171164652,31.31950148,160.36,160.35,122.92]
[1752171164855,5.31950148,160.36,160.35,122.92]
[1752171165053,31.31950148,160.36,160.35,122.92]
[1752171165270,5.31950148,160.36,160.35,122.92]
[1752171165428,31.31950148,160.36,160.35,122.92]
[1752171165634,5.31950148,160.36,160.35,89.0]
[1752171165838,0.28432314,160.32,160.31,89.0]
[1752171166070,0.95432314,160.32,160.31,122.92]
[1752171166298,26.0,160.33,160.31,89.0]
[1752171166451,26.0,160.33,160.31,122.92]
[1752171166648,26.67,160.33,160.31,122.92]
[1752171166846,26.95432314,160.33,160.32,33.92]
[1752171167043,26.0,160.33,160.31,89.0]
[1752171167456,26.0,160.32,160.31,89.0]
[1752171168476,26.0,160.32,160.31,123.61]
[1752171168673,26.0,160.34,160.31,34.61]
[1752171168884,4.36554057,160.35,160.29,0.69]
[1752171169066,26.0,160.33,160.29,0.69]
[1752171169377,26.0,160.33,160.3,0.69]
[1752171169567,0.67,160.33,160.28,115.98]
[1752171169756,26.0,160.3,160.28,116.67]
[1752171170089,26.0,160.3,160.29,0.69]
[1752171170563,26.0,160.3,160.29,34.65]
[1752171170766,26.0,160.3,160.29,33.96]
[1752171172586,31.03607908,160.33,160.29,33.96]
[1752171172778,31.03607908,160.33,160.3,33.92]
[1752171173269,0.28432314,160.32,160.28,115.98]
[1752171173459,26.0,160.33,160.29,0.69]
[1752171173661,26.0,160.32,160.3,0.69]
[1752171173977,26.0,160.32,160.3,89.69]
[1752171174786,26.0,160.32,160.31,0.69]
[1752171174971,26.0,160.34,160.31,34.57]
[1752171175364,26.0,160.34,160.31,122.88]
[1752171175566,26.0,160.33,160.31,123.57]
[1752171177257,26.0,160.33,160.32,0.68]
[1752171177476,26.0,160.35,160.32,0.68]
[1752171177783,26.0,160.35,160.33,33.82]
[1752171177960,0.72,160.38,160.34,0.68]
[1752171178166,1.00432314,160.37,160.35,33.82]
[1752171178478,26.0,160.36,160.35,33.82]
[1752171178656,0.72,160.36,160.34,89.0]
[1752171178852,0.72,160.35,160.34,89.0]
[1752171179860,0.72,160.35,160.31,146.3]
[1752171179861,26.28432314,160.32,160.31,89.0]
[1752171180189,0.28432314,160.31,160.28,115.98]
[1752171180389,26.0,160.32,160.29,33.78]
[1752171180600,0.28432314,160.34,160.29,34.46]
[1752171180762,0.28432314,160.34,160.3,0.68]
[1752171180962,26.0,160.32,160.31,33.76]
[1752171181681,26.0,160.32,160.31,122.76]
[1752171181860,5.08463399,160.38,160.31,152.67638397]
[1752171182056,5.08463399,160.38,160.32,0.68]
[1752171182256,26.0,160.35,160.33,33.76]
[1752171182459,26.0,160.35,160.34,0.68]
[1752171182881,4.39442826,160.39,160.34,89.68]
[1752171183080,26.0,160.36,160.35,33.74]
[1752171183278,0.72,160.38,160.35,122.74]
[1752171183589,0.72,160.38,160.35,89.0]
[1752171183590,1.00432314,160.37,160.35,89.0]
[1752171184598,5.36930902,160.37,160.35,89.0]
[1752171184764,4.64930902,160.37,160.35,89.0]
[1752171184968,0.72,160.36,160.35,89.0]
[1752171185276,0.72,160.36,160.35,122.7]
[1752171186384,0.72,160.36,160.35,89.0]
[1752171186565,0.72,160.36,160.35,122.68]
[1752171186762,5.08517834,160.36,160.35,122.68]
[1752171186966,5.36950148,160.36,160.35,122.68]
[1752171189180,26.0,160.33,160.32,89.0]
[1752171189385,26.0,160.33,160.32,122.62]
[1752171189798,1.00432314,160.33,160.32,89.0]
[1752171189981,27.00432314,160.33,160.32,122.6]
[1752171190186,27.00432314,160.33,160.32,89.0]
[1752171190368,27.00432314,160.33,160.32,122.6]
[1752171190678,27.00432314,160.33,160.32,122.62]
[1752171190864,27.00432314,160.33,160.32,77.30731664]
[1752171191066,0.28432314,160.32,160.28,104.28731664]
[1752171191268,26.0,160.29,160.28,77.36731664]
[1752171191488,27.00432314,160.29,160.28,77.36731664]
[1752171191678,27.00432314,160.29,160.28,110.96731664]
[1752171192576,0.28432314,160.29,160.28,110.96731664]
[1752171192780,26.28432314,160.29,160.28,110.96731664]
[1752171192985,26.0,160.29,160.28,78.04731664]
[1752171193287,26.0,160.29,160.28,111.62731664]
[1752171193801,26.0,160.29,160.28,110.94731664]
[1752171194189,26.0,160.29,160.28,77.36731664]
[1752171194497,0.72,160.29,160.28,110.92731664]
[1752171195071,30.36691568,160.3,160.28,110.92731664]
[1752171195072,30.36691568,160.3,160.28,77.36731664]
[1752171195267,5.37123882,160.3,160.29,33.54]
[1752171195492,5.37123882,160.3,160.28,77.36731664]
[1752171195676,26.0,160.29,160.28,77.36731664]
[1752171195878,26.0,160.29,160.28,78.04731664]
[1752171196383,26.0,160.31,160.28,78.04731664]
[1752171196700,26.0,160.31,160.29,34.22]
[1752171197575,26.0,160.31,160.29,33.54]
[1752171198272,26.0,160.3,160.29,33.54]
[1752171198687,26.0,160.3,160.29,128.31200061]
[1752171198895,5.08463399,160.38,160.3,16.78468397]
[1752171199098,0.28432314,160.37,160.31,34.22]
[1752171199395,4.39446435,160.39,160.32,5.97875249]
[1752171199693,26.0,160.37,160.33,34.22]
[1752171199897,26.0,160.37,160.34,0.68]
[1752171200092,26.0,160.37,160.35,33.54]
[1752171200271,0.03,160.39,160.36,0.68]
[1752171200465,0.03,160.39,160.37,33.54]
[1752171200466,26.0,160.38,160.37,33.54]
[1752171200670,0.03,160.39,160.37,33.54]
[1752171200867,26.0,160.38,160.37,33.54]
[1752171201271,26.0,160.38,160.37,34.22]
[1752171201705,0.03,160.39,160.37,34.22]
[1752171202000,0.03,160.39,160.38,0.68]
[1752171202199,0.03,160.39,160.38,77.30731664]
[1752171202880,1.03432314,160.39,160.38,77.30731664]
[1752171203087,1.03432314,160.39,160.38,110.84731664]
[1752171203293,27.03432314,160.39,160.38,110.84731664]
[1752171203691,0.28432314,160.37,160.35,77.30731664]
[1752171203875,0.72,160.36,160.35,77.30731664]
[1752171204081,0.72,160.36,160.32,77.30731664]
[1752171204283,0.72,160.35,160.32,77.30731664]
[1752171204588,1.00432314,160.37,160.32,77.30731664]
[1752171204787,0.72,160.36,160.32,77.30731664]
[1752171205290,0.72,160.35,160.33,33.54]
[1752171205595,0.72,160.35,160.32,77.30731664]
[1752171205907,26.0,160.33,160.32,77.30731664]
[1752171206974,26.0,160.33,160.32,110.84731664]
[1752171208978,0.28432314,160.36,160.32,110.84731664]
[1752171209179,0.28432314,160.35,160.32,111.54731664]
[1752171209404,26.0,160.34,160.32,111.54731664]
[1752171210413,0.71,160.37,160.32,110.84731664]
[1752171210608,0.03,160.37,160.33,0.7]
[1752171210903,0.03,160.37,160.34,34.24]
[1752171211086,0.03,160.37,160.35,0.7]
[1752171211289,0.03,160.37,160.36,33.54]
[1752171211497,0.03,160.37,160.36,110.84731664]
[1752171211999,0.03,160.37,160.36,111.54731664]
[1752171213282,0.03,160.37,160.36,110.84731664]
[1752171213681,0.03,160.37,160.36,111.54731664]
[1752171214184,0.03,160.37,160.36,110.82731664]
[1752171214385,0.03,160.37,160.36,77.30731664]
[1752171214584,0.99432314,160.37,160.36,110.82731664]
[1752171215399,26.0,160.36,160.31,0.6237914]
[1752171215598,26.0,160.36,160.32,0.7]
[1752171215803,26.0,160.35,160.32,0.7]
[1752171215981,26.0,160.35,160.3,29.96898397]
[1752171216341,26.0,160.35,160.33,0.7]
[1752171216481,26.0,160.35,160.31,0.7]
[1752171216677,26.0,160.35,160.32,34.22]
[1752171217083,0.03,160.37,160.33,0.7]
[1752171217390,26.03,160.37,160.34,34.22]
[1752171217998,0.03,160.37,160.34,34.22]
[1752171218502,26.03,160.37,160.35,1.32363579]
[1752171218720,26.03,160.37,160.36,34.22]
[1752171219088,0.03,160.37,160.36,33.52]
[1752171219489,26.03,160.37,160.36,33.52]
[1752171220811,26.03,160.37,160.36,34.22]
[1752171221107,26.03,160.37,160.36,33.52]
[1752171221690,0.03,160.37,160.36,33.52]
[1752171223506,26.03,160.37,160.36,33.52]
[1752171224215,26.03,160.37,160.36,110.82731664]
[1752171224902,26.03,160.37,160.36,111.52731664]
[1752171226613,26.03,160.37,160.36,110.82731664]
[1752171227195,26.03,160.37,160.36,111.52731664]
[1752171227894,0.03,160.37,160.36,111.52731664]
[1752171231092,0.03,160.37,160.36,110.82731664]
[1752171231287,26.03,160.37,160.36,110.82731664]
[1752171231488,26.71,160.37,160.36,77.30731664]
[1752171231717,0.71,160.37,160.36,77.30731664]
[1752171232100,5.35922929,160.37,160.36,77.30731664]
[1752171232601,5.35922929,160.37,160.36,110.80731664]
[1752171232797,5.35922929,160.37,160.36,77.30731664]
[1752171233107,5.35922929,160.37,160.36,110.80731664]
[1752171233416,0.28432314,160.37,160.36,110.80731664]
[1752171234619,4.64922929,160.37,160.36,110.80731664]
[1752171235511,5.32922929,160.37,160.36,110.80731664]
[1752171237904,0.96432314,160.37,160.36,110.80731664]
[1752171238110,0.28432314,160.37,160.36,110.80731664]
[1752171238510,26.0,160.38,160.36,110.80731664]
[1752171238724,0.69,160.39,160.36,110.80731664]
[1752171239031,0.03,160.39,160.37,0.68]
[1752171239320,26.03,160.39,160.38,33.5]
[1752171240403,26.03,160.39,160.38,111.48731664]
[1752171241628,26.03,160.39,160.38,77.30731664]
[1752171242623,0.03,160.39,160.38,77.98731664]
[1752171242931,0.03,160.39,160.38,111.48731664]
[1752171243132,0.03,160.39,160.38,128.27200061]
[1752171244615,0.03,160.39,160.38,111.48731664]
[1752171247039,0.69,160.39,160.38,77.30731664]
[1752171247204,0.97432314,160.39,160.38,77.30731664]
[1752171247405,26.31432314,160.39,160.38,77.30731664]
[1752171247604,0.03,160.39,160.38,111.46731664]
[1752171247806,26.03,160.39,160.38,110.78731664]
[1752171248111,26.97432314,160.39,160.34,77.30731664]
[1752171248310,0.66,160.38,160.34,77.30731664]
[1752171248505,0.66,160.38,160.34,77.98731664]
[1752171248921,26.0,160.35,160.34,77.98731664]
[1752171249525,26.0,160.37,160.34,111.46731664]
[1752171249723,26.0,160.37,160.35,0.68]
[1752171249933,26.0,160.37,160.36,33.48]
[1752171250239,26.0,160.37,160.35,0.68]
[1752171251514,26.0,160.37,160.36,33.48]
[1752171251719,26.0,160.37,160.35,0.68]
[1752171252621,26.0,160.37,160.36,0.68]
[1752171253213,26.03,160.39,160.36,34.16]
[1752171253420,26.03,160.39,160.37,0.68]
[1752171253614,26.03,160.39,160.38,33.48]
[1752171253861,26.03,160.39,160.37,0.68]
[1752171255517,26.03,160.39,160.38,33.46]
[1752171255717,26.03,160.39,160.37,0.68]
[1752171256840,26.03,160.39,160.37,77.98731664]
[1752171257220,0.03,160.39,160.38,0.68]
[1752171257622,0.03,160.39,160.38,34.14]
[1752171259037,26.03,160.39,160.37,77.30731664]
[1752171259214,26.0,160.38,160.37,77.30731664]
[1752171259936,0.97432314,160.39,160.37,77.30731664]
[1752171261019,5.338685,160.39,160.38,33.46]
[1752171261218,5.338685,160.39,160.37,77.30731664]
[1752171262350,0.66,160.38,160.37,44.17098871]
[1752171262651,0.42648471,160.37,160.35,0.06]
[1752171262830,0.28432314,160.33,160.29,26.92]
[1752171263020,0.66,160.32,160.29,26.92]
[1752171263350,11.84602211,160.32,160.31,33.72]
[1752171263653,26.0,160.3,160.29,26.92]
[1752171263820,0.28432314,160.29,160.22,3.727]
[1752171264021,26.94432314,160.29,160.28,33.68]
[1752171264225,0.28432314,160.28,160.22,0.2]
[1752171264445,0.66,160.27,160.23,33.72]
[1752171264653,26.0,160.25,160.23,33.72]
[1752171264945,26.0,160.25,160.22,0.2]
[1752171265148,30.4041863,160.25,160.22,0.2]
[1752171265442,26.66,160.25,160.22,0.2]
[1752171265833,26.0,160.25,160.22,0.2]
[1752171266146,29.74418795,160.25,160.22,0.2]
[1752171266324,0.94432314,160.24,160.22,0.2]
[1752171266924,0.94432314,160.24,160.23,33.74]
[1752171267225,0.28432314,160.24,160.22,0.2]
[1752171270428,0.98432314,160.24,160.22,0.2]
[1752171270627,26.0,160.25,160.22,0.9]
[1752171270835,26.0,160.25,160.23,0.7]
[1752171271233,26.0,160.25,160.22,0.2]
[1752171271646,26.0,160.25,160.23,0.7]
[1752171271841,0.28432314,160.27,160.24,0.7]
[1752171272058,26.0,160.28,160.25,34.4]
[1752171272258,26.0,160.28,160.25,78.57098871]
[1752171272441,26.7,160.28,160.25,44.17098871]
[1752171272625,26.0,160.28,160.25,44.87098871]
[1752171272952,26.0,160.29,160.25,44.87098871]
[1752171273253,0.7,160.28,160.25,44.17098871]
[1752171273550,4.72798232,160.28,160.25,44.17098871]
[1752171274462,0.7,160.27,160.25,44.17098871]
[1752171275257,26.0,160.26,160.25,44.17098871]
[1752171275435,26.28432314,160.26,160.25,44.17098871]
[1752171275859,0.28432314,160.26,160.25,44.17098871]
[1752171276161,0.98432314,160.26,160.25,44.17098871]
[1752171276661,26.0,160.24,160.22,0.2]
[1752171276967,0.7,160.23,160.22,0.2]
[1752171277534,10.8582691,160.23,160.22,0.2]
[1752171277947,4.44461711,160.23,160.22,0.2]
[1752171278155,6.41365199,160.23,160.22,0.2]
[1752171278464,7.39797513,160.23,160.22,33.88]
[1752171278633,0.28432314,160.23,160.22,33.88]
[1752171278841,6.69797513,160.23,160.22,33.88]
[1752171279033,0.28432314,160.23,160.22,33.88]
[1752171279260,6.69797513,160.23,160.22,33.88]
[1752171279629,3.74454943,160.24,160.22,33.88]
[1752171279630,29.20557362,160.24,160.22,33.88]
[1752171279831,6.41365199,160.23,160.22,33.88]
[1752171280032,29.90557362,160.24,160.22,0.2]
[1752171280263,6.41365199,160.23,160.22,33.86]
[1752171280938,26.7,160.24,160.22,33.86]
[1752171281270,6.41365199,160.23,160.22,33.86]
[1752171281433,6.41365199,160.26,160.22,33.86]
[1752171281634,15.42738147,160.27,160.22,33.86]
[1752171281835,26.0,160.24,160.23,0.7]
[1752171282044,6.41365199,160.24,160.22,33.86]
[1752171282250,26.0,160.24,160.22,33.86]
[1752171282462,6.41365199,160.23,160.22,33.86]
[1752171282742,26.0,160.24,160.22,34.56]
[1752171282963,6.41365199,160.23,160.22,33.86]
[1752171283636,6.41365199,160.23,160.22,34.56]
[1752171285265,26.0,160.25,160.22,34.56]
[1752171285450,0.7,160.3,160.25,18.17098871]
[1752171285650,8.64242423,160.29,160.26,34.32]
[1752171285952,8.64242423,160.29,160.27,0.7]
[1752171286153,8.64242423,160.29,160.28,33.62]
[1752171286547,6.40795881,160.31,160.28,33.62]
[1752171286952,8.62923237,160.31,160.27,0.7]
[1752171287158,0.14216157,160.34,160.27,0.7]
[1752171287343,26.0,160.31,160.27,18.87098871]
[1752171287661,34.97847369,160.31,160.27,18.87098871]
[1752171288168,34.97847369,160.31,160.28,0.7]
[1752171288356,34.97847369,160.31,160.29,33.58]
[1752171288560,34.97847369,160.31,160.28,0.7]
[1752171289064,34.97847369,160.31,160.29,0.7]
[1752171290042,34.97847369,160.31,160.3,33.54]
[1752171290240,34.97847369,160.31,160.29,0.7]
[1752171290748,34.97847369,160.31,160.27,18.17098871]
[1752171290749,38.72131455,160.31,160.27,18.87098871]
[1752171291060,39.25131455,160.31,160.27,18.87098871]
[1752171291265,0.81432314,160.3,160.27,18.17098871]
[1752171291572,0.53,160.29,160.27,18.17098871]
[1752171292169,0.28432314,160.3,160.27,18.17098871]
[1752171292170,0.53,160.28,160.27,18.17098871]
[1752171292344,0.53,160.28,160.27,51.69098871]
[1752171292545,0.53,160.28,160.27,18.17098871]
[1752171292776,0.53,160.28,160.27,51.73098871]
[1752171292950,4.27344896,160.28,160.27,51.73098871]
[1752171294359,288.41064318,160.28,160.27,51.73098871]
[1752171294842,288.41064318,160.28,160.27,18.17098871]
[1752171295049,288.41064318,160.28,160.27,51.71098871]
[1752171295351,26.0,160.25,160.23,18.87098871]
[1752171296070,29.74433731,160.25,160.23,18.17098871]
[1752171296248,0.81432314,160.24,160.23,18.17098871]
[1752171296450,0.28432314,160.24,160.23,18.17098871]
[1752171297069,0.28432314,160.24,160.23,33.5]
[1752171297239,0.28432314,160.24,160.22,18.37098871]
[1752171297676,30.02891549,160.24,160.22,18.37098871]
[1752171298467,0.53,160.23,160.22,18.37098871]
[1752171298683,30.02891549,160.24,160.22,18.37098871]
[1752171299042,6.65710845,160.23,160.22,18.37098871]
[1752171299363,26.28432314,160.23,160.22,18.37098871]
[1752171299569,32.65710845,160.23,160.22,18.37098871]
[1752171299978,36.40172556,160.23,160.22,18.37098871]
[1752171300467,32.65710845,160.23,160.22,18.37098871]
[1752171300667,32.37278531,160.23,160.22,19.04098871]
[1752171300970,6.37278531,160.23,160.22,19.04098871]
[1752171301153,6.37278531,160.27,160.22,180.67]
[1752171301347,6.37278531,160.27,160.22,180.0]
[1752171301551,6.37278531,160.27,160.23,0.67]
[1752171302771,6.37278531,160.27,160.24,14.5425]
[1752171302952,6.37278531,160.27,160.25,34.17]
[1752171303157,6.37278531,160.27,160.26,0.67]
[1752171304180,6.37278531,160.27,160.26,89.67]
[1752171306848,5.65278531,160.27,160.26,106.45468397]
[1752171307047,5.65278531,160.27,160.26,17.59684554]
[1752171307246,5.65278531,160.27,160.26,17.45468397]
[1752171307553,284.13719422,160.28,160.26,17.45468397]
[1752171307757,284.13719422,160.28,160.27,33.6]
[1752171307974,284.13719422,160.28,160.27,34.27]
[1752171308785,284.13719422,160.28,160.27,51.05468397]
[1752171311872,284.13719422,160.28,160.27,51.19684554]
[1752171312076,176.72539422,160.28,160.27,212.61546868]
[1752171312250,176.72539422,160.28,160.27,0.67]
[1752171312679,175.07539422,160.28,160.27,155.34736868]
[1752171312970,175.07539422,160.28,160.27,301.36304554]
[1752171313372,175.07539422,160.28,160.27,301.22088397]
[1752171313578,175.07539422,160.28,160.27,301.26088397]
[1752171313896,175.07539422,160.28,160.27,301.40304554]
[1752171315860,159.73219422,160.28,160.27,301.68736868]
[1752171316077,155.10769422,160.28,160.27,298.76746868]
[1752171316287,155.10769422,160.28,160.27,308.58400402]
[1752171317272,155.10769422,160.28,160.27,298.76746868]
[1752171319385,155.10769422,160.28,160.27,308.58400402]
[1752171320066,155.10769422,160.28,160.27,298.76746868]
[1752171321987,66.10769422,160.28,160.27,209.76746868]
[1752171323058,66.10769422,160.28,160.27,209.66746868]
[1752171326485,66.10769422,160.28,160.27,228.36746868]
[1752171326981,66.10769422,160.28,160.27,238.18400402]
[1752171327773,0.03,160.35,160.34,39.67698975]
[1752171327974,0.03,160.35,160.34,73.29915132]
[1752171328472,0.03,160.35,160.34,219.59915132]
[1752171331190,0.03,160.35,160.34,219.88347446]
[1752171331885,0.03,160.35,160.34,238.58347446]
[1752171332586,0.03,160.35,160.34,219.88347446]
[1752171333579,0.03,160.35,160.34,238.58347446]
[1752171333781,3.1833,160.44,160.42,22.17230578]
[1752171333983,29.1833,160.44,160.43,33.48]
[1752171334887,29.1833,160.44,160.42,22.17230578]
[1752171335767,0.66,160.43,160.42,22.17230578]
[1752171336293,0.66,160.43,160.42,55.65230578]
[1752171336875,29.1833,160.44,160.42,55.65230578]
[1752171337386,29.8433,160.44,160.43,16.78468397]
[1752171337786,3.8433,160.44,160.43,16.78468397]
[1752171338172,29.8433,160.44,160.43,16.78468397]
[1752171339197,29.1833,160.44,160.43,16.78468397]
[1752171339383,26.0,160.44,160.43,16.78468397]
[1752171339696,26.0,160.44,160.43,38.95698975]
[1752171339892,26.0,160.44,160.43,72.41698975]
[1752171340189,26.0,160.44,160.43,72.55915132]
[1752171342884,2.988,160.48,160.45,21.97230578]
[1752171343086,0.66,160.51,160.46,51.66005381]
[1752171343294,3.2543,160.52,160.46,51.66005381]
[1752171343498,0.66,160.5,160.46,219.93235959]
[1752171343701,0.66,160.5,160.46,218.65915132]
[1752171344086,3.2543,160.52,160.47,0.65]
[1752171344278,0.2,160.52,160.49,16.92684554]
[1752171344598,0.2,160.52,160.51,16.92684554]
[1752171344807,0.2,160.52,160.51,50.38684554]
[1752171345175,0.2,160.52,160.51,51.03684554]
[1752171345376,0.2,160.52,160.51,51.65985968]
[1752171345593,0.2,160.52,160.51,51.94418282]
[1752171348807,0.2,160.52,160.51,18.48418282]
[1752171349006,0.2,160.52,160.51,0.14216157]
[1752171349195,0.2,160.52,160.51,50.22468397]
[1752171349583,0.2,160.52,160.51,50.36684554]
[1752171349812,3.8704,160.52,160.47,21.97230578]